Cogmind - Beta 12 @@@ ROGUE MODE // 2023.08.07 @ 18:39:22 Player: CrossedViper Result: Self-destructed Performance ------------- Evolutions (4) 2000 Regions Visited (13) 2600 Robots Destroyed (158) 790 Value Destroyed (7130) 7130 Prototype IDs (8) 160 Alien Tech Used (0) 0 Bonus (4009) 4009 TOTAL SCORE: 16689 Bonus ------- High Alert Combat Kills 800 Follower Combat Kills 972 Entered Garrisons 800 Used RIF Installer 1500 Friendly Fire -63 Cogmind --------- Core Integrity 203/850 Matter 188/300 Energy 71/100 System Corruption 5% Temperature Cool (0) Movement Core (50) Location -6/Factory Parts ------- > --- POWER (1) -------- (None) > --- PROPULSION (5) --- (None) > --- UTILITY (7) ------ Improved Signal Interpreter Advanced Targeting Computer Hacking Suite Advanced Hacking Suite Authchip [Processor] > --- WEAPON (2) ------- (None) > --- INVENTORY (5) ---- Long-range Terrain Scanner Advanced Particle Charger Quantum Capacitor Long-range Missile Launcher Peak State ------------ > --- POWER ------------ Light Fission Core > --- PROPULSION ------- Improved Heavy Treads Improved Heavy Treads Flexi-carbon Leg > --- UTILITY ---------- Advanced Heat Sink High-capacity Storage Unit Advanced Targeting Computer Layered Medium Armor Plating Hacking Suite Hacking Suite > --- WEAPON ----------- Gauss Rifle Heavy Machine Gun > --- INVENTORY -------- Micro Fission Core Myomer Leg Myomer Leg Advanced VSS Leg Huge Storage Unit Long-range Sensor Array Long-range Terrain Scanner Advanced Particle Charger Quantum Capacitor Advanced Hacking Suite Relay Coupler [NC] Relay Coupler [NC] Relay Coupler [NC] Relay Coupler [NC] Relay Coupler [Grunt] Relay Coupler [Grunt] Long-range Missile Launcher Remote Datajack Ripper [Rating: 76] Favorites ----------- Power Improved Ion Engine Engine Improved Ion Engine Power Core Light Nuclear Core Reactor Particle Reactor Propulsion Light Treads Treads Light Treads Leg Myomer Leg Flight Unit Nuclear Pulse Thruster Utility High-capacity Storage Unit Device Improved Heat Sink Storage High-capacity Storage Unit Processor Advanced Targeting Computer Hackware Hacking Suite Protection Layered Heavy Armor Plating Weapon Assault Rifle Energy Gun Beamcaster Energy Cannon Long-range Proton Cannon Ballistic Gun Assault Rifle Ballistic Cannon Mass Driver Launcher Long-range Missile Launcher Special Weapon Remote Datajack Build | -11 -10 -9 -8 -8 -8 -8 -7 -7 -6 -6 -6 -6 -6 ------- Run | Jun Mat Mat Mat Gar Mat Gar Fac Gar Fac Was Fac Gar Fac Slots Evolved 8 | . . 2 2 . . . 2 . 2 . . . . Power . | . . . . . . . . . . . . . . Propulsion 3 | . . 1 . . . . 1 . 1 . . . . Utility 5 | . . 1 2 . . . 1 . 1 . . . . Weapon . | . . . . . . . . . . . . . . Parts Attached 136 | 5 5 19 7 12 5 19 8 8 17 2 12 10 7 Power 12 | 1 1 1 . . . 1 3 . 2 . 1 2 . Engine 6 | 1 . 1 . . . 1 2 . 1 . . . . Core 5 | . 1 . . . . . 1 . 1 . 1 1 . Reactor 1 | . . . . . . . . . . . . 1 . Propulsion 44 | 2 . 8 2 2 3 6 3 4 4 . 3 4 3 Treads 22 | 2 . 8 2 2 3 1 . 3 . . . 1 . Leg 20 | . . . . . . 5 3 1 4 . 3 3 1 Wheel . | . . . . . . . . . . . . . . Hover . | . . . . . . . . . . . . . . Flight 2 | . . . . . . . . . . . . . 2 Utility 54 | 1 2 7 3 7 2 5 2 4 8 1 5 3 4 Device 22 | . . 1 1 3 . 2 2 2 4 . 4 2 1 Storage 4 | 1 1 . 1 . . . . . 1 . . . . Processor 3 | . . . 1 . . . . 1 1 . . . . Hackware 11 | . . . . . 2 3 . . 2 . . 1 3 Protection 14 | . 1 6 . 4 . . . 1 . 1 1 . . Artifact . | . . . . . . . . . . . . . . Weapon 26 | 1 2 3 2 3 . 7 . . 3 1 3 1 . Energy Gun 7 | . 1 2 1 . . 1 . . . . 2 . . Energy Cannon 1 | . . . . . . 1 . . . . . . . Ballistic Gun 13 | 1 1 1 1 2 . 4 . . 2 1 . . . Ballistic Cannon 2 | . . . . 1 . . . . . . 1 . . Launcher 1 | . . . . . . . . . . . . 1 . Special Weapon 2 | . . . . . . 1 . . 1 . . . . Impact Weapon . | . . . . . . . . . . . . . . Slashing Weapon . | . . . . . . . . . . . . . . Piercing Weapon . | . . . . . . . . . . . . . . Special Melee Weapon . | . . . . . . . . . . . . . . Unidentified Prototypes 3 | . . 1 . . . . . 1 . . 1 . . Corrupted Parts 3 | . . 1 . 1 . 1 . . . . . . . System Corruption 9 | . . 2 . 3 . 4 . . . . . . . Parts Lost 41 | . 1 4 1 5 2 5 . . 3 . 2 12 6 Power 4 | . 1 . . . . . . . . . 1 1 1 Propulsion 18 | . . 2 1 2 2 3 . . . . 1 5 2 Utility 15 | . . 2 . 3 . 1 . . 2 . . 4 3 Weapon 4 | . . . . . . 1 . . 1 . . 2 . Highest Loss Streak 11 | . 1 4 1 3 2 2 . . 2 . 1 11 4 To Critical Strikes 1 | . . . . . . 1 . . . . . . . Average Slot Usage (%) 86 | . 90 97 99 92 90 85 57 75 79 93 90 87 42 Engine 8 | . 12 9 9 9 9 9 3 7 4 6 4 . . Treads 19 | . 28 31 26 26 27 15 . 12 10 . . 1 1 Leg 5 | . . . . . . 7 15 5 5 26 30 26 . Device 7 | . . 4 9 15 4 6 4 11 10 4 3 7 4 Storage 8 | . 14 11 9 9 9 9 7 7 6 6 6 5 . Processor 2 | . . . 9 2 . . . . 7 13 13 13 13 Hackware 6 | . . . . . 13 11 7 7 12 20 13 12 18 Protection 8 | . 6 15 18 13 9 9 . 6 4 1 3 1 . Energy Gun 4 | . 6 10 9 4 . . 7 7 1 . . 10 . Ballistic Gun 10 | . 20 11 9 10 9 10 7 7 8 6 5 . . Naked Turns . | . . . . . . . . . . . . . . Heaviest Build 84 | 10 54 68 69 84 84 83 60 69 71 69 76 72 5 Greatest Support 150 | 40 40 63 63 63 60 60 40 150 150 88 104 95 6 Greatest Overweight (x) 17 | 3 1 1 1 1 1 3 17 2 . . . 1 1 Average Overweight (x) . | . . . 1 1 1 1 2 . . . . . . Largest Inventory Capacity 20 | 8 20 20 20 20 20 20 20 20 20 20 20 20 5 Average Capacity 18 | 7 13 20 20 20 20 20 20 20 20 20 20 18 5 Most Carried 20 | 4 20 20 19 20 20 20 20 20 20 20 20 20 5 Average Carried 17 | 2 11 19 16 18 19 17 19 19 19 19 19 17 4 Final Capacity 20 | 8 20 20 20 20 20 20 20 20 20 20 20 5 5 Final Carried 20 | 4 20 18 16 20 20 20 20 20 19 20 18 5 5 Class Distribution -------------------- 44% | Bothacker-Mutant 34% | Scavenger-Mutant 18% | Mutant 3% | Hacker-Mutant Dominant Class ---------------- Mutant | -10/Materials Scavenger-Mutant | -9/Materials Scavenger-Mutant | -8/Materials Scavenger-Mutant | -8/Garrison Scavenger-Mutant | -8/Materials Bothacker-Mutant | -8/Garrison Bothacker-Mutant | -7/Factory Bothacker-Mutant | -7/Garrison Bothacker-Mutant | -6/Factory Bothacker-Mutant | -6/Waste Bothacker-Mutant | -6/Factory Bothacker-Mutant | -6/Garrison Hacker-Mutant | -6/Factory Resources | -11 -10 -9 -8 -8 -8 -8 -7 -7 -6 -6 -6 -6 -6 ----------- Run | Jun Mat Mat Mat Gar Mat Gar Fac Gar Fac Was Fac Gar Fac Matter Collected 3706 | 173 508 494 100 398 250 386 . 396 141 218 547 95 . Remotely . | . . . . . . . . . . . . . . Salvage Created 6502 | . 726 1701 449 604 369 525 . 1012 291 . 663 162 . Parts 346 | . 60 108 21 41 24 22 . 26 16 . 24 4 . Haulers Intercepted 5 | . 2 . . . . . . . . . 3 . . Recyclers Shooed 6 | . 3 1 . . . . . . . . 2 . . Parts Field Recycled . | . . . . . . . . . . . . . . Retrieved Matter . | . . . . . . . . . . . . . . Parts Self-Destructed . | . . . . . . . . . . . . . . Prevented . | . . . . . . . . . . . . . . Kills | -11 -10 -9 -8 -8 -8 -8 -7 -7 -6 -6 -6 -6 -6 ------- Run | Jun Mat Mat Mat Gar Mat Gar Fac Gar Fac Was Fac Gar Fac Combat Hostiles Destroyed 120 | . 14 30 7 21 7 13 . 7 7 . 10 4 . Guns 94 | . 14 27 6 21 5 2 . 6 7 . 5 1 . Cannons 16 | . . . . . 2 10 . . . . 4 . . AOE 8 | . . 3 1 . . . . . . . 1 3 . Classes Destroyed 16 | . 8 2 1 3 1 1 . . . . . . . Worker 8 | . 3 1 1 . . . . . . . 3 . . Builder 8 | . 2 3 1 . . . . . 1 . 1 . . Tunneler 1 | . 1 . . . . . . . . . . . . Hauler 5 | . 2 . . . . . . . . . 3 . . Recycler 3 | . . 2 . . 1 . . . . . . . . Operator 5 | . 2 2 . . 1 . . . . . . . . Watcher 8 | . 3 3 1 . 1 . . . . . . . . Swarmer 38 | . 6 1 . 11 2 6 . . 4 . 5 3 . Grunt 52 | . 8 19 5 5 2 5 . 5 2 . 1 . . Brawler 1 | . . . . 1 . . . . . . . . . Duelist 2 | . . . 1 . 1 . . . . . . . . Protector 1 | . . . . 1 . . . . . . . . . Sentry 17 | . . 10 1 2 1 . . 2 . . 1 . . Demolisher 1 | . . . . 1 . . . . . . . . . Hunter 5 | . . . . . . 2 . . . . 2 1 . Programmer 3 | . . . . . 1 . . . 1 . 1 . . Best Kill Streak 7 | . 3 7 6 6 4 3 . 2 4 . 5 3 . Combat Bots Only 6 | . 3 3 6 6 3 3 . 2 4 . 3 3 . Max Kills in Single Turn 4 | . 2 3 2 1 1 1 . 1 1 . 4 2 . Gunslinging 1 | . . 1 . . . . . . . . . . . Exploded 2 | . . 1 1 . . . . . . . 1 2 . Melee . | . . . . . . . . . . . . . . Uniques/NPCs Destroyed . | . . . . . . . . . . . . . . Combat | -11 -10 -9 -8 -8 -8 -8 -7 -7 -6 -6 -6 -6 -6 -------- Run | Jun Mat Mat Mat Gar Mat Gar Fac Gar Fac Was Fac Gar Fac Damage Taken 9777 | . 458 1211 490 1042 494 1158 . 342 1132 . 1013 2030 407 Core 1313 | . 46 220 49 151 71 101 . 28 104 . 61 275 207 Absorbed by Shields 290 | . . . . 49 . . . 241 . . . . . Regen/Repaired (Parts) 40 | . . 40 . . . . . . . . . . . Core Remaining (%) 70 | 100 81 45 . . . 32 . 96 . . . . . Volleys Fired 564 | . 104 92 26 82 32 58 . 67 29 1 57 16 . Largest 2 | . 2 2 2 2 2 2 . 2 2 1 2 2 . Hottest 122 | . 60 73 89 89 92 116 . 103 58 33 94 122 . Shots Fired 932 | . 160 159 50 142 44 73 . 121 46 1 106 30 . Gun 807 | . 160 159 50 135 32 21 . 121 46 1 54 28 . Cannon 115 | . . . . 7 12 48 . . . . 48 . . Launcher 2 | . . . . . . . . . . . . 2 . Special 8 | . . . . . . 4 . . . . 4 . . Kinetic 592 | . 142 93 26 66 44 19 . 54 46 1 101 . . Thermal 185 | . . . 11 76 . 2 . 67 . . 1 28 . Explosive 2 | . . . . . . . . . . . . 2 . Electromagnetic 145 | . 18 66 13 . . 48 . . . . . . . Robot Hit Streak 28 | . 15 14 9 15 5 12 . 25 17 . 9 28 . Robot Miss Streak 8 | . 7 6 3 2 3 4 . 4 3 1 8 . . Penetration Max 2 | . . . . . . 2 . . . . 1 . . Secondary Targets 16 | . 2 5 1 7 . . . 1 . . . . . Max Gunslinging Chain 1 | . 1 1 1 1 . . . 1 . . . . . Shots Hit Robots 569 | . 88 114 34 71 26 30 . 88 35 . 58 25 . Core Hits 276 | . 35 59 23 32 18 13 . 38 12 . 29 17 . Critical Kills 8 | . . . . . 3 . . . . . 5 . . Critical Parts Destroyed 16 | . . 2 . . 2 1 . 2 . . 9 . . Critical Strikes 39 | . 1 2 . . 6 1 . 10 . . 16 3 . Burn 11 | . . . . . . . . 8 . . . 3 . Destroy 26 | . . 2 . . 5 1 . 2 . . 16 . . Blast 1 | . . . . . 1 . . . . . . . . Corrupt 1 | . 1 . . . . . . . . . . . . Melee Attacks . | . . . . . . . . . . . . . . Impact . | . . . . . . . . . . . . . . Slashing . | . . . . . . . . . . . . . . Piercing . | . . . . . . . . . . . . . . Sneak Attacks . | . . . . . . . . . . . . . . Combat Hostiles . | . . . . . . . . . . . . . . Follow-up Attacks . | . . . . . . . . . . . . . . Damage Inflicted 12562 | . 1258 2354 769 1136 409 928 . 1994 804 . 1560 1335 15 Guns 8828 | . 1203 1880 583 1136 151 50 . 1906 792 . 667 460 . Cannons 1666 | . . . . . 258 878 . . . . 530 . . Explosions 1789 | . . 428 180 . . . . . . . 306 875 . Melee . | . . . . . . . . . . . . . . Ramming 279 | . 55 46 6 . . . . 88 12 . 57 . 15 Kinetic 5828 | . 1059 797 238 409 409 50 . 897 792 . 1177 . . Thermal 2901 | . . 428 257 727 . . . 1009 . . 20 460 . Explosive 1181 | . . . . . . . . . . . 306 875 . Electromagnetic 2373 | . 144 1083 268 . . 878 . . . . . . . Impact . | . . . . . . . . . . . . . . Slashing . | . . . . . . . . . . . . . . Piercing . | . . . . . . . . . . . . . . Highest Corruption 9 | . . 4 . 3 4 9 . 1 1 1 4 5 5 Average Corruption 3 | . . 3 . 3 3 4 . 1 1 1 1 4 5 Corruption Purged . | . . . . . . . . . . . . . . Corruption Blocked . | . . . . . . . . . . . . . . Effects 137 | . . 19 . 24 7 52 . 10 1 4 8 6 6 Message Errors 34 | . . 6 . 8 3 12 . 1 . 2 1 1 . Matter Fused 31 | . . 4 . 5 . 12 . 4 . . 2 2 2 Heat Flow Errors 18 | . . 2 . 4 1 7 . . 1 . 2 . 1 Energy Discharges 22 | . . 2 . 2 2 7 . 2 . 1 2 2 2 Parts Rejected 2 | . . . . . 1 1 . . . . . . . Data Loss (minor) 15 | . . 3 . 3 . 4 . 3 . 1 . 1 . Data Loss (major) 5 | . . . . . . 4 . . . . . . 1 Misfires 6 | . . 1 . 2 . 3 . . . . . . . Alerts 3 | . . 1 . . . 2 . . . . . . . Weapon Failures 1 | . . . . . . . . . . . 1 . . Overload Shots . | . . . . . . . . . . . . . . Overflow Damage 77 | . . 3 . . . 40 . 1 . . 6 27 . Projectiles 45 | . . . . . . 40 . . . . 5 . . Explosions 30 | . . 3 . . . . . . . . . 27 . Melee 2 | . . . . . . . . 1 . . 1 . . Knockbacks 8 | . . . . . 2 . . 1 . . 4 . 1 Impact 3 | . . . . . . . . 1 . . 1 . 1 Kinetic 5 | . . . . . 2 . . . . . 3 . . Secondary . | . . . . . . . . . . . . . . Self-Inflicted Damage 278 | . . 144 61 . . . . . . . . 66 7 Shots 7 | . . 3 2 . . . . . . . . 2 . Rammed 39 | . 10 3 2 . . . . 22 1 . . . 1 Targets Rammed 47 | . 11 4 2 . . . . 22 1 . 6 . 1 Kicked 6 | . . . . . . . . . . . 6 . . Crushed 2 | . 1 1 . . . . . . . . . . . Highest Temperature 538 | . 27 252 305 391 384 538 . 35 182 . 222 204 109 Average Temperature 108 | . 9 74 92 140 155 132 . 10 30 . 80 102 72 Received Heat Transfer 2144 | . 138 474 153 249 135 297 . 160 135 . 63 271 69 Effects 16 | . . 2 . 3 1 9 . . . . 1 . . Shutdowns 1 | . . . . . . 1 . . . . . . . Energy Bleed 5 | . . . . 2 . 2 . . . . 1 . . Interference 6 | . . 2 . . . 4 . . . . . . . Short Circuit 2 | . . . . 1 1 . . . . . . . . Damage (minor) 2 | . . . . . . 2 . . . . . . . Siege Activations . | . . . . . . . . . . . . . . Robots Corrupted 1 | . . . . . . 1 . . . . . . . Combat Hostiles 1 | . . . . . . 1 . . . . . . . Parts Fried 9 | . . 5 . . . 4 . . . . . . . Impact Corruptions 2 | . . . . . . . . 1 . . 1 . . Robots Melted 2 | . . . . . . . . 1 . . . 1 . Combat Hostiles 2 | . . . . . . . . 1 . . . 1 . Parts Melted 9 | . . . . 1 . . . 5 . . . 3 . Heat Transferred 5490 | . . 350 398 1284 . . . 2348 . . 37 1073 . Parts Sabotaged . | . . . . . . . . . . . . . . Parts Stolen . | . . . . . . . . . . . . . . Parts Stripped . | . . . . . . . . . . . . . . Power Chain Reactions 7 | . . 5 2 . . . . . . . . . . Missiles Intercepted . | . . . . . . . . . . . . . . Alert | -11 -10 -9 -8 -8 -8 -8 -7 -7 -6 -6 -6 -6 -6 ------- Run | Jun Mat Mat Mat Gar Mat Gar Fac Gar Fac Was Fac Gar Fac Peak Influence 1831 | . 218 687 345 1127 759 1713 898 1831 1228 429 400 383 406 Initial 961 | . . 66 100 224 549 370 898 628 961 429 300 280 174 Average 619 | . 84 252 255 701 614 983 898 1166 1077 429 129 310 253 Maximum Alert Level 5 | . 1 2 1 4 3 5 3 5 4 2 2 1 2 Low Security (%) 25 | 100 98 49 32 . . . . . . . 62 . 29 Level 1 13 | . 1 24 67 12 . 1 . . . . 33 100 66 Level 2 18 | . . 25 . 26 74 26 . 7 . 100 3 . 4 Level 3 23 | . . . . 57 25 28 100 39 47 . . . . Level 4 14 | . . . . 4 . 34 . 33 52 . . . . Level 5 4 | . . . . . . 8 . 19 . . . . . High Security . | . . . . . . . . . . . . . . Max Security . | . . . . . . . . . . . . . . Squads Dispatched 25 | . 4 4 . . 2 . . . 8 . 4 . 3 Investigation 11 | . 2 2 . . . . . . 3 . 1 . 3 Extermination 3 | . . . . . . . . . 2 . 1 . . Reinforcement 8 | . 2 2 . . . . . . 2 . 2 . . Assault 1 | . . . . . . . . . 1 . . . . Garrison 2 | . . . . . 2 . . . . . . . . Intercept . | . . . . . . . . . . . . . . Searches Triggered 1 | . . . . . . . . . . . . . 1 Construction Impeded . | . . . . . . . . . . . . . . Haulers Reinforced 1 | . . . . . . . . . . . 1 . . Active Scanning Responses . | . . . . . . . . . . . . . . Cargo Convoy Interrupts . | . . . . . . . . . . . . . . Stealth | -11 -10 -9 -8 -8 -8 -8 -7 -7 -6 -6 -6 -6 -6 --------- Run | Jun Mat Mat Mat Gar Mat Gar Fac Gar Fac Was Fac Gar Fac Distress Signals 7 | . 2 2 1 . 1 . . . . . . . 1 Communications Jammed . | . . . . . . . . . . . . . . Distress Signals . | . . . . . . . . . . . . . . Times Spotted 235 | . 34 43 12 22 9 36 . 12 14 . 16 19 18 Peak Tracking Total 17 | . 4 4 7 4 4 5 . 4 4 . 3 17 7 Tactical Retreats 16 | . . . 1 1 . 2 . . 2 . 4 . 6 Traps | -11 -10 -9 -8 -8 -8 -8 -7 -7 -6 -6 -6 -6 -6 ------- Run | Jun Mat Mat Mat Gar Mat Gar Fac Gar Fac Was Fac Gar Fac Traps Triggered 25 | . 1 3 . 8 . 8 . 3 2 . . . . Indirectly . | . . . . . . . . . . . . . . Trap Hack Attempts . | . . . . . . . . . . . . . . Triggered . | . . . . . . . . . . . . . . Disarmed . | . . . . . . . . . . . . . . Reprogrammed . | . . . . . . . . . . . . . . Reused . | . . . . . . . . . . . . . . Traps Extracted . | . . . . . . . . . . . . . . Installed . | . . . . . . . . . . . . . . Triggered 1 | . . . . . . . . . . . 1 . . Machines | -11 -10 -9 -8 -8 -8 -8 -7 -7 -6 -6 -6 -6 -6 ---------- Run | Jun Mat Mat Mat Gar Mat Gar Fac Gar Fac Was Fac Gar Fac Machines Disabled 29 | . 2 3 1 6 1 6 . 2 3 . 5 . . Max in Single Turn 4 | . 1 2 1 1 1 1 . 1 . . 4 . . Garrison Access 1 | . . . . . . . . . 1 . . . . Garrison Relay 12 | . . . . 5 . 5 . 2 . . . . . Machines Repaired . | . . . . . . . . . . . . . . Machines Sabotaged . | . . . . . . . . . . . . . . Overloaded Fab Kills . | . . . . . . . . . . . . . . Hacking | -11 -10 -9 -8 -8 -8 -8 -7 -7 -6 -6 -6 -6 -6 --------- Run | Jun Mat Mat Mat Gar Mat Gar Fac Gar Fac Was Fac Gar Fac Machines Accessed 42 | . 4 7 1 2 2 5 1 2 5 . 4 1 8 Terminals 27 | . 3 5 . 2 . 5 . 2 3 . 1 1 5 Fabricators 5 | . . . . . . . . . 1 . 1 . 3 Repair Stations 1 | . . 1 . . . . . . . . . . . Recycling Units 2 | . 1 1 . . . . . . . . . . . Scanalyzers 2 | . . . . . 1 . . . . . 1 . . Garrison Access 5 | . . . 1 . 1 . 1 . 1 . 1 . . Total Hacks 121 | . 16 19 1 2 11 10 1 6 13 . 9 4 29 Successful 72 | . 8 10 1 2 11 4 1 1 5 . 4 . 25 Failed 47 | . 7 9 . . . 6 . 5 8 . 5 4 3 Catastrophic 3 | . 1 1 . . . 1 . . . . . . . Database Lockouts 2 | . 1 . . . . . . . . . . . 1 Manual 44 | . 9 7 . . 1 . . . 9 . . . 18 Terminals 89 | . 15 15 . 2 . 10 . 6 10 . 4 4 23 Fabricators 10 | . . . . . . . . . 2 . 2 . 6 Repair Stations 3 | . . 3 . . . . . . . . . . . Recycling Units 2 | . 1 1 . . . . . . . . . . . Scanalyzers 11 | . . . . . 9 . . . . . 2 . . Garrison Access 6 | . . . 1 . 2 . 1 . 1 . 1 . . Terminal Hacks 33 | . 6 4 . 2 . 4 . 1 1 . 1 . 14 Part Schematic 1 | . . . . . . . . . . . . . 1 Robot Schematic 1 | . . . . . . . . . . . . . 1 Robot Analysis 1 | . 1 . . . . . . . . . . . . Prototype ID Bank 2 | . 1 . . . . . . . . . . . 1 Open Door 1 | . . . . . . 1 . . . . . . . Level Access Points 1 | . . . . . . . . . . . . . 1 Branch Access Points 2 | . . . . . . . . . . . . . 2 Emergency Access Points 4 | . 1 . . 1 . 1 . 1 . . . . . Terminal Index 3 | . . 1 . . . . . . 1 . . . 1 Fabricator Index 1 | . . . . . . . . . . . . . 1 Recycling Unit Index 1 | . . . . . . . . . . . . . 1 Garrison Index 2 | . . . . . . . . . . . 1 . 1 Alert Level 1 | . . . . . . . . . . . . . 1 Unreport Threat 6 | . 2 3 . . . . . . . . . . 1 Maintenance Status 1 | . . . . . . . . . . . . . 1 Hauler Manifests 2 | . 1 . . . . . . . . . . . 1 Garrison Registry 2 | . . . . 1 . 1 . . . . . . . Patrol Navigation 1 | . . . . . . 1 . . . . . . . Fabricator Hacks 5 | . . . . . . . . . 1 . . . 4 Load Schematic 4 | . . . . . . . . . 1 . . . 3 Build 1 | . . . . . . . . . . . . . 1 Repair Station Hacks 2 | . . 2 . . . . . . . . . . . Scan Component 1 | . . 1 . . . . . . . . . . . Repair 1 | . . 1 . . . . . . . . . . . Recycling Unit Hacks . | . . . . . . . . . . . . . . Scanalyzer 11 | . . . . . 9 . . . . . 2 . . Insert Component 5 | . . . . . 4 . . . . . 1 . . Analyze 6 | . . . . . 5 . . . . . 1 . . Garrison Access Hacks 5 | . . . 1 . 1 . 1 . 1 . 1 . . Unlock Access 4 | . . . 1 . 1 . 1 . . . 1 . . Seal Access 1 | . . . . . . . . . 1 . . . . Unauthorized Hacks 16 | . 2 4 . . 1 . . . 2 . . . 7 Terminals 10 | . 1 3 . . . . . . 1 . . . 5 Track 1 | . . . . . . . . . . . . . 1 Assimilate 1 | . . 1 . . . . . . . . . . . Botnet 5 | . . 1 . . . . . . 1 . . . 3 Operators 3 | . 1 1 . . . . . . . . . . 1 Fabricators 3 | . . . . . . . . . 1 . . . 2 Recompile 3 | . . . . . . . . . 1 . . . 2 Repair Stations . | . . . . . . . . . . . . . . Recycling Units 2 | . 1 1 . . . . . . . . . . . Tunnel 2 | . 1 1 . . . . . . . . . . . Scanalyzers . | . . . . . . . . . . . . . . Garrison Access 1 | . . . . . 1 . . . . . . . . Restock 1 | . . . . . 1 . . . . . . . . Data Cores Recovered 1 | . . . . . 1 . . . . . . . . Used . | . . . . . . . . . . . . . . Hacking Detections 30 | . 2 5 . . 2 3 . 2 4 . 4 1 7 Full Trace Events 11 | . . 2 . . 1 2 . 2 2 . . 1 1 Feedback Events 2 | . . . . . . 1 . 1 . . . . . Corruption 2 | . . . . . . 1 . 1 . . . . . Feedback Blocked . | . . . . . . . . . . . . . . Robot Schematics Acquired 1 | . . . . . . . . . . . . . 1 Robots Built . | . . . . . . . . . . . . . . Authchips . | . . . . . . . . . . . . . . Time . | . . . . . . . . . . . . . . Total Robot Build Rating . | . . . . . . . . . . . . . . Part Schematics Acquired 6 | . . . . . 4 . . . . . 1 . 1 Parts Built 1 | . . . . . . . . . . . . . 1 Authchips . | . . . . . . . . . . . . . . Time 53 | . . . . . . . . . . . . . 53 Total Part Build Rating 6 | . . . . . . . . . . . . . 6 Parts Repaired 1 | . . 1 . . . . . . . . . . . Time 18 | . . 18 . . . . . . . . . . . Parts Recycled . | . . . . . . . . . . . . . . Recycled Matter . | . . . . . . . . . . . . . . Retrieved Matter . | . . . . . . . . . . . . . . Retrieved Components . | . . . . . . . . . . . . . . Parts Scanalyzed 5 | . . . . . 4 . . . . . 1 . . Part Schematics Acquired 5 | . . . . . 4 . . . . . 1 . . Parts Damaged . | . . . . . . . . . . . . . . Bothacking | -11 -10 -9 -8 -8 -8 -8 -7 -7 -6 -6 -6 -6 -6 ------------ Run | Jun Mat Mat Mat Gar Mat Gar Fac Gar Fac Was Fac Gar Fac Used RIF Installer 3 | . . . . 1 . 1 . 1 . . . . . Signal Jammer 1 | . . . . . . . . 1 . . . . . Structural Interface 1 | . . . . . . 1 . . . . . . . Robots Hacked 5 | . . . . . . 4 . . . . 1 . . Non-combat 1 | . . . . . . . . . . . 1 . . Combat 4 | . . . . . . 4 . . . . . . . Robot Hacks Applied 7 | . . . . . . 4 . . . . 3 . . purge_threat 2 | . . . . . . . . . . . 2 . . reprogram_traps 1 | . . . . . . . . . . . 1 . . overwrite_iff 2 | . . . . . . 2 . . . . . . . formatsys_high 2 | . . . . . . 2 . . . . . . . Relay Couplers Released 50 | . . . . 20 3 20 . 7 . . . . . Machine Destruction 47 | . . . . 20 . 20 . 7 . . . . . Programmers 3 | . . . . . 3 . . . . . . . . Attached 4 | . . . . . . 3 . . 1 . . . . Fabnet Peak Effective % . | . . . . . . . . . . . . . . Robots Rewired 7 | . . . . . . 7 . . . . . . . Allies Hacked . | . . . . . . . . . . . . . . Hacks Repelled . | . . . . . . . . . . . . . . Allies | -11 -10 -9 -8 -8 -8 -8 -7 -7 -6 -6 -6 -6 -6 -------- Run | Jun Mat Mat Mat Gar Mat Gar Fac Gar Fac Was Fac Gar Fac Total Allies 15 | . . . . . . 13 . 2 . . . . . Largest Group 6 | . . . . . . 6 4 4 3 . . . . Highest-Rated Group 191 | . . . . . . 158 79 191 191 . . . . Highest-Rated Ally 95 | . . . . . . 31 31 95 95 . . . . Total Orders . | . . . . . . . . . . . . . . Ally Attacks 158 | . . . . . . 81 . 40 37 . . . . Total Damage 3266 | . . . . . . 1550 . 799 917 . . . . Kills 31 | . . . . . . 17 . 5 9 . . . . Allies Corrupted . | . . . . . . . . . . . . . . Allies Melted 1 | . . . . . . 1 . . . . . . . Intel | -11 -10 -9 -8 -8 -8 -8 -7 -7 -6 -6 -6 -6 -6 ------- Run | Jun Mat Mat Mat Gar Mat Gar Fac Gar Fac Was Fac Gar Fac Robot Analysis Total 1 | . 1 . . . . . . . . . . . . Derelict Logs Recovered . | . . . . . . . . . . . . . . Drone Launches . | . . . . . . . . . . . . . . Drone Recoveries . | . . . . . . . . . . . . . . Exploration | -11 -10 -9 -8 -8 -8 -8 -7 -7 -6 -6 -6 -6 -6 ------------- Run | Jun Mat Mat Mat Gar Mat Gar Fac Gar Fac Was Fac Gar Fac Turns Passed 12638 | 78 1531 1711 375 2021 429 2315 109 1644 737 288 760 240 400 Spaces Moved 5815 | 44 525 610 116 720 125 767 36 812 415 248 488 144 765 Core 397 | 7 . . . . . . 3 . . . . 32 355 Treads 3628 | 37 525 610 116 720 125 534 . 636 323 . . 2 . Legs 1380 | . . . . . . 233 33 176 92 248 488 110 . Wheels . | . . . . . . . . . . . . . . Hover . | . . . . . . . . . . . . . . Flight 410 | . . . . . . . . . . . . . 410 Fastest Speed 40 | 50 160 160 240 240 240 190 190 160 110 110 112 100 40 Average Speed 174 | 153 195 223 240 240 240 259 258 166 148 110 113 115 45 Slowest Speed 900 | 200 240 240 240 240 240 400 900 260 160 112 114 190 100 Overloaded Moves . | . . . . . . . . . . . . . . Propulsion Burnouts . | . . . . . . . . . . . . . . Robots Hopped 14 | . . . . . . . . . . . . . 14 Cave-ins Triggered . | . . . . . . . . . . . . . . Exploration Rate (%) 39 | 3 58 61 14 54 13 81 1 85 14 86 18 33 25 Regions Visited 13 Branch Regions . Pre-discovered Areas 2 | . 1 1 . . . . . . . . . . . Known Exits Taken 4 | . . . 1 . 1 . 1 . . . 1 . . Unknown Exits Taken 3 | 1 1 1 . . . . . . . . . . . Scrap Searched . | . . . . . . . . . . . . . . Spaces Dug . | . . . . . . . . . . . . . . Terrain Destroyed 80 | . . 18 6 . 4 . . 1 1 . 30 20 . Melee . | . . . . . . . . . . . . . . Projectile 15 | . . . . . 3 . . 1 1 . 10 . . AOE 64 | . . 18 6 . . . . . . . 20 20 . Terrain Rammed . | . . . . . . . . . . . . . . Walls Destroyed . | . . . . . . . . . . . . . . Machines Disabled . | . . . . . . . . . . . . . . Actions | -11 -10 -9 -8 -8 -8 -8 -7 -7 -6 -6 -6 -6 -6 --------- Run | Jun Mat Mat Mat Gar Mat Gar Fac Gar Fac Was Fac Gar Fac Total 7344 | 52 861 799 160 879 212 1024 53 972 492 261 589 193 797 Wait 528 | . 198 53 . 21 43 101 . 38 13 . 20 6 35 Move 5781 | 43 524 609 116 719 124 766 36 811 415 247 488 143 740 Hop 11 | . . . . . . . . . . . . . 11 Pick Up 91 | 4 18 10 4 18 5 13 . 9 5 3 . 1 1 Fast Attach 66 | 5 2 8 2 3 1 7 6 7 8 1 5 5 6 Attach 50 | . 2 6 4 8 4 6 2 1 7 . 5 4 1 Detach 7 | . . . . . . . 2 . . . 3 2 . Swap 20 | . 1 5 1 1 . 6 . . 2 1 2 1 . Drop 102 | . 1 12 5 13 3 12 7 15 12 2 3 15 2 Fire 564 | . 104 92 26 82 32 58 . 67 29 1 57 16 . Melee . | . . . . . . . . . . . . . . Ram 1 | . . . . . . . . . . . . . 1 Kick 6 | . . . . . . . . . . . 6 . . Crush 40 | . 11 4 2 . . . . 22 1 . . . . Escape Stasis 40 | . . . . 14 . 26 . . . . . . . Rewire 37 | . . . . . . 29 . 2 . 6 . . . Trap . | . . . . . . . . . . . . . . Miscellaneous . | . . . . . . . . . . . . . . Route ------- -11/Junkyard -10/Materials (discovered 4 exits: *Mat x2 / [*Min x2]) -9/Materials (discovered 5 exits: *Mat x2 / [*Min x2] / [*Sto]) -8/Materials -8/Garrison (discovered 4 exits: *Mat x4) -8/Materials -8/Garrison (discovered 3 exits: *Fac x3) -7/Factory -7/Garrison (discovered 3 exits: *Fac x3) -6/Factory (discovered 2 exits: *Fac x2) -6/Waste -6/Factory -6/Garrison -6/Factory (discovered 6 exits: Fac x4 / Low x2) History --------- Turn | Location | Event 10 | -11/Junkyard | Discovered new exit (range 15) 79 | -11/Junkyard | Entered Materials 127 | -10/Materials | Central database locked down 157 | -10/Materials | Discovered new exit (range 12) 312 | -10/Materials | Discovered new exit (range 12) 312 | -10/Materials | Discovered new exit (range 13) 314 | -10/Materials | Build established: Mutant 853 | -10/Materials | Discovered new exit (range 10) 1610 | -10/Materials | Entered another Materials area 1610 | -9/Materials | Evolved 2 slots: Propulsion x1, Utility x1 1864 | -9/Materials | Discovered new exit (range 15) 2204 | -9/Materials | Repaired Corrupted Lgt. Treads 2225 | -9/Materials | Discovered new exit (range 10) 2515 | -9/Materials | Discovered new exit (range 10) 2568 | -9/Materials | Discovered new exit (range 15) 2582 | -9/Materials | Build established: Scavenger-Mutant 2782 | -9/Materials | Discovered new exit (range 15) 2889 | -9/Materials | Core integrity fell below 50% 3046 | -9/Materials | Lost 4 parts (2n2u) 3321 | -9/Materials | Entered another Materials area 3321 | -8/Materials | Evolved 2 slots: Utility x2 3696 | -8/Materials | Identified exit to Garrison 3696 | -8/Materials | Entered Garrison 3728 | -8/Garrison | Triggered checkpoint 3787 | -8/Garrison | Discovered new exit (range 5) 3902 | -8/Garrison | Triggered checkpoint 3944 | -8/Garrison | Lost 3 parts (2n1u) 3947 | -8/Garrison | Garrison Relay disabled 4044 | -8/Garrison | Installed Relay Interface Framework 4130 | -8/Garrison | Triggered checkpoint 4152 | -8/Garrison | Triggered checkpoint 4336 | -8/Garrison | Triggered checkpoint 4477 | -8/Garrison | Garrison Relay disabled 4543 | -8/Garrison | Discovered new exit (range 10) 5132 | -8/Garrison | Discovered new exit (range 13) 5197 | -8/Garrison | Discovered new exit (range 14) 5197 | -8/Garrison | Discovered new exit (range 79) 5197 | -8/Garrison | Discovered new exit (range 87) 5197 | -8/Garrison | Discovered new exit (range 61) 5318 | -8/Garrison | Triggered checkpoint 5412 | -8/Garrison | Garrison Relay disabled 5629 | -8/Garrison | Garrison Relay disabled 5633 | -8/Garrison | Garrison Relay disabled 5717 | -8/Garrison | Entered Materials 5970 | -8/Materials | Garrison activated, responded to threat 6052 | -8/Materials | Identified exit to Garrison 6146 | -8/Materials | Entered Garrison 6185 | -8/Garrison | Garrison Relay disabled 6363 | -8/Garrison | Core integrity fell below 50% 6438 | -8/Garrison | Build established: Bothacker-Mutant 6486 | -8/Garrison | Triggered checkpoint 6544 | -8/Garrison | Triggered checkpoint 6586 | -8/Garrison | Triggered checkpoint 6664 | -8/Garrison | Triggered checkpoint 6668 | -8/Garrison | Discovered new exit (range 12) 6745 | -8/Garrison | Garrison Relay disabled 6869 | -8/Garrison | Discovered new exit (range 16) 6869 | -8/Garrison | Discovered new exit (range 91) 6869 | -8/Garrison | Discovered new exit (range 62) 7006 | -8/Garrison | Triggered checkpoint 7054 | -8/Garrison | Garrison Relay disabled 7451 | -8/Garrison | Rescued a captive Derelict 7462 | -8/Garrison | Rescued a captive Derelict 7746 | -8/Garrison | Triggered checkpoint 7840 | -8/Garrison | Build established: Scavenger-Mutant 7846 | -8/Garrison | Garrison Relay disabled 8124 | -8/Garrison | Expanded RIF knowledge: Structural Interface 8146 | -8/Garrison | Build established: Bothacker-Mutant 8248 | -8/Garrison | Garrison Relay disabled 8461 | -8/Garrison | Entered Factory 8461 | -7/Factory | Accompanied by 4 allies 8461 | -7/Factory | Evolved 2 slots: Propulsion x1, Utility x1 8570 | -7/Factory | Identified exit to Garrison 8570 | -7/Factory | Entered Garrison 8570 | -7/Garrison | Warlord forces raided the area 8570 | -7/Garrison | Accompanied by 4 allies 8594 | -7/Garrison | Triggered checkpoint 8620 | -7/Garrison | Expanded RIF knowledge: Signal Jamming 8630 | -7/Garrison | Triggered checkpoint 8684 | -7/Garrison | Triggered checkpoint 8720 | -7/Garrison | Warlord forces retreated 9149 | -7/Garrison | Discovered new exit (range 12) 9251 | -7/Garrison | Found Quantum Capacitor 9326 | -7/Garrison | Triggered checkpoint 9341 | -7/Garrison | Garrison Relay disabled 9420 | -7/Garrison | Triggered checkpoint 9470 | -7/Garrison | Garrison Relay disabled 9518 | -7/Garrison | Discovered new exit (range 12) 9640 | -7/Garrison | Discovered new exit (range 13) 9652 | -7/Garrison | Triggered checkpoint 9821 | -7/Garrison | Found embedded Infiltrators 10214 | -7/Garrison | Entered Factory 10214 | -6/Factory | Accompanied by 3 allies 10214 | -6/Factory | Evolved 2 slots: Propulsion x1, Utility x1 10455 | -6/Factory | Discovered new exit (range 15) 10797 | -6/Factory | Discovered new exit (range 11) 10812 | -6/Factory | Identified exit to Factory 10914 | -6/Factory | First assault squad dispatched 10951 | -6/Factory | Sucked down chute 10951 | -6/Factory | Entered Waste 10951 | -6/Waste | The area was eerily silent 11070 | -6/Waste | Discovered new exit (range 16) 11238 | -6/Waste | Identified exit to Factory 11239 | -6/Waste | Entered Factory 11999 | -6/Factory | Identified exit to Garrison 11999 | -6/Factory | Entered Garrison 12166 | -6/Garrison | Spotted B-75 Beast 12170 | -6/Garrison | Triggered checkpoint 12176 | -6/Garrison | Triggered checkpoint 12180 | -6/Garrison | Triggered checkpoint 12220 | -6/Garrison | Core integrity fell below 50% 12229 | -6/Garrison | Discovered new exit (range 10) 12233 | -6/Garrison | Lost 11 parts (1p5n3u2w) 12237 | -6/Garrison | Identified exit to Factory 12239 | -6/Garrison | Entered Factory 12330 | -6/Factory | Fabricated Adv. Hacking Suite (x1) 12447 | -6/Factory | Identified exit to Lower Caves 12482 | -6/Factory | Build established: Hacker-Mutant 12589 | -6/Factory | Search patrols dispatched 12605 | -6/Factory | Central database locked down 12639 | -6/Factory | Self-destructed Last Messages --------------- Found 6 recycling units. Downloaded coordinate data. 12622_ Adv. Hacking Suite destroyed. 12627_ Connecting with Fabricator... >>Load(Adv. Hacking Suite) Uploading Adv. Hacking Suite schematic... Loaded successfully: Adv. Hacking Suite Rating: 6 Time: 35 Initiate build sequence. >>Force(Recompile) RECOMPILED[Authchip [Processor]] 12627_ ALERT: Suspicious activity at Fabricator F004. Dispatching Investigation squad. 12627_ Acquired Authchip [Processor]. 12631_ Authchip [Propulsion] destroyed. 12632_ Nuclear Pulse Thruster destroyed. 12634_ P-60 Hacker resets G-67 Veteran, system corruption cleaned. 12635_ Lrn. Sensor Array destroyed. Map ----- +----------------------------------------------------+ | ?# ????# #???????????????????# ###### | | ?# ???# #???????????????????# # | | ?# #### ###?????????????????# # | | ?# #?????????????????# """ # [[ | | ?# #?????????????????# ""F # [[ | | ?#"" #?????????????????# "" # [? | | ?#"" #?????????????????# """ # | | ?#G #?????????????????# """ # """ " | | ?#"" #?????????????????# # """ " | | ?#"" """ """ #??????????????#########+### """ " | | ?# """ """ #??????????????# | | ?# """ """ #??????????????# """ " | | ?# """ """ #??????????????# """ " | | ?# #??????????????# """ " | | ?# """ """ #########??????# | | ???? """ """ # T #??????# | | ?????""" """ # ######## pk | | ?????""" """ # # k ###########+### | | ?? # "" # #????# | | ?# """ """ # "" # #????# """ ! | | ???? """ """ # """ + #????# "T" | | ???? """ """ # """ # #????# " | | ?# """ """ # """ # ###+#######?# " | | ?# # # # #?# " | | ?# """ """ # # tu# """ """ #?# | | ???? """ """ # # @ # """ """ #?# """ " | | ???? """ """ ######### R # """ """ #?# """ " | | ?# """ """ #???????# # ### """ " | | ?? #???????# k #! ! " F" + + | | ?# """ """ #???????# # """" ### [ | | ???? """ """ ######### # #?########## | | ?????""" """ ###########??????????? | | ??????"" """ #????????????????????? | | ????? """ ^#????????????????????? | | ?????""" """ """ #????????????????????? | | ?????""" """ """ #????????????????????? | | ??????"" """ ########????????????????????? | | ??????"" """ """ #???????????????????????????? | | ??????? """ #???????????????????????????? | | ???????? """ """ #???????????????????????????? | | ?????????""" #???????????????????????????? | | ??????????"" """ #???????????????????????????? | | ???????????" """ #???????????????????????????? | | ??????????? "?" #???????????????????????????? | | ???????????" ? ????????????????????????????? | | ???????????" "?" ????????????????????????????? | | ???????????? ??? ????????????????????????????? | | ?????????????????????????????????????????????????? | | ?????????????????????????????????????????????????? | | ?????????????????????????????????????????????????? | +----------------------------------------------------+ Best States ------------- Heat Dissipation 75 Energy Generation 23 Energy Capacity 340 Matter Stores 300 Matter Capacity 300 Sight Range 16 Robot Scan Range 18 Terrain Scan Density 10 Jamming Range 14 Armor Coverage 600 Evasion (%) 62 Targeting Accuracy 8 Recoil Reduction 4 Offensive Hacking 38 Relay Coupler Types 1 Relay Coupler Value 25 Authchip Count 2 Item Schematics ----------------- Adv. Hacking Suite | -8/Materials | Scanalyzed Lrn. Proton Cannon | -8/Materials | Scanalyzed Imp. Transmission Jammer | -8/Materials | Scanalyzed Huge Storage Unit | -8/Materials | Scanalyzed Quantum Capacitor | -6/Factory | Scanalyzed Imp. VTOL Module | -6/Factory | Hacked Robot Schematics ------------------ B-48 Gladiator | -6/Factory | Hacked Fabricated ------------ Adv. Hacking Suite | x1 | -6/Factory Alien Tech Used ----------------- None Achievements -------------- None Challenges ------------ None Game ------ Seed EfficiencyDisposableRay Manual? 0 Play Time 01:08:41 Cumulative 709.7 hours Start 2023.08.07 @ 17:06:41 End 2023.08.07 @ 18:39:22 Sessions 1 Manual Loads 0 Difficulty Rogue Special Mode None Game No. 459 Rogue 452 Adventurer 0 Explorer 7 Win Type - Total 52 Types 19/5/19/2/0/1/4/1/1 Lore% 89 Gallery% 96 Achievement% 82 Wizard Run 0 Options --------- ASCII 0 Keyboard 0 Movement Numpad Keybinds 0 Fullscreen 1 Font 18/X11Bold Map View 76x50 Tactical HUD 1 Map Filters NONE Filters NONE Steam 1 RUN: 3dad5e19-87fa-42d7-9025-21a681111232